[Event "FIDE WYCC Girls U18 2023"]
[Site "Montesilvano"]
[Date "2023.11.20"]
[Round "7.10"]
[White "Sosovickova, Jana"]
[Black "Naymanova, Patricie"]
[Result "*"]
[ECO "B54"]
[WhiteElo "2013"]
[BlackElo "2083"]
[Annotator "NA RC"]
[PlyCount "76"]
[EventDate "2023.11.13"]
[EventType "swiss"]
[EventCountry "ITA"]
[SourceTitle "playchess.com"]
[Source "ChessBase"]
[SourceQuality "1"]
[TimeControl "40/5400+30:1800+30"]

1. e4 {[%emt 0:00:04]} c5 {[%emt 0:00:04]} 2. Nf3 {[%emt 0:00:05]} d6 {[%emt 0:00:09]} 3. d4 {[%emt 0:00:13]} cxd4 {[%emt 0:00:04]} 4. Nxd4 {[%emt 0:00:08]} Nf6 {[%emt 0:00:04]} 5. Nc3 {[%emt 0:00:08]} a6 {[%emt 0:00:03]} 6. Be3 {[%emt 0:00:37]} e5 {[%emt 0:02:33]} 7. Nb3 {[%emt 0:00:19]} Be6 {[%emt 0:00:59]} 8. f4 {[%emt 0:01:37]} g6 {[%emt 0:00:38]} 9. Qe2 {[%emt 0:29:49]} Nbd7 {[%emt 0:04:25]} 10. g3 {[%emt 0:18:08]} b5 {[%emt 0:17:20]} 11. Bg2 {[%emt 0:05:56]} Bc4 {[%emt 0:06:31]} 12. Qd2 {[%emt 0:00:59]} Qc7 {[%emt 0:10:31]} 13. Nd5 {[%emt 0:08:45]} Nxd5 {[%emt 0:16:52]} 14. exd5 {[%emt 0:00:06]} Bg7 {[%emt 0:01:40]} 15. fxe5 {[%emt 0:08:16]} Bxe5 {[%emt 0:03:32]} 16. Bd4 {[%emt 0:06:17]} O-O {[%emt 0:03:55]} 17. O-O-O {[%emt 0:01:17]} Bxb3 {[%emt 0:02:23]} 18. axb3 {[%emt 0:00:25]} Bxd4 {[%emt 0:01:06]} 19. Qxd4 {[%emt 0:00:03]} Ne5 {[%emt 0:00:34]} 20. h4 {[%emt 0:00:55]} Rac8 {[%emt 0:03:33]} 21. Rd2 {[%emt 0:00:21]} h5 {[%emt 0:00:05]} 22. Rf1 {[%emt 0:00:51]} f5 {[%emt 0:00:47]} 23. Kb1 {[%emt 0:01:24]} a5 {[%emt 0:00:56]} 24. Bf3 {[%emt 0:01:19]} a4 {[%emt 0:01:26]} 25. b4 {[%emt 0:00:51]} Nc4 {[%emt 0:04:22]} 26. Re2 {[%emt 0:00:29]} a3 {[%emt 0:01:33]} 27. b3 {[%emt 0:00:16]} Ne5 {[%emt 0:01:22]} 28. Rd2 {[%emt 0:04:31]} Qc3 {[%emt 0:04:51]} 29. Qxc3 {[%emt 0:00:05]} Rxc3 {[%emt 0:00:03]} 30. Be2 {[%emt 0:01:36]} Rxg3 {[%emt 0:00:39]} 31. Rd4 {[%emt 0:00:31]} Rb8 {[%emt 0:01:00]} 32. Ka2 {[%emt 0:00:24]} Rg2 {[%emt 0:03:32]} 33. Bd1 {[%emt 0:00:45]} Ra8 {[%emt 0:00:28]} 34. Re1 {[%emt 0:00:54]} Rh2 {[%emt 0:00:21]} 35. Re3 {[%emt 0:00:25]} Kf7 {[%emt 0:00:28]} 36. Rc3 {[%emt 0:00:39]} Ng4 {[%emt 0:02:07]} 37. Rc7+ {[%emt 0:02:31]} Kf6 {[%emt 0:00:04]} 38. Rd3 {[%emt 0:00:47]} Rxh4 {[%emt 0:01:14]} *

[Event "FIDE WYCC Girls U18 2023"]
[Site "Montesilvano"]
[Date "2023.11.20"]
[Round "7.11"]
[White "Liu, Kelsey"]
[Black "Sovetbekova, Nurai"]
[Result "1-0"]
[ECO "B50"]
[WhiteElo "2051"]
[BlackElo "1801"]
[Annotator "NA RC"]
[PlyCount "121"]
[EventDate "2023.11.13"]
[EventType "swiss"]
[EventCountry "ITA"]
[SourceTitle "playchess.com"]
[Source "ChessBase"]
[SourceQuality "1"]
[TimeControl "40/5400+30:1800+30"]

1. e4 {[%emt 0:00:06]} c5 {[%emt 0:00:07]} 2. Nf3 {[%emt 0:00:09]} d6 {[%emt 0:00:06]} 3. c3 {[%emt 0:00:11]} Nf6 {[%emt 0:00:17]} 4. Bd3 {[%emt 0:00:14]} Nc6 {[%emt 0:00:35]} 5. Bc2 {[%emt 0:00:17]} Bg4 {[%emt 0:00:30]} 6. d4 {[%emt 0:07:28]} cxd4 {[%emt 0:25:20]} 7. cxd4 {[%emt 0:00:11]} e5 {[%emt 0:01:22]} 8. d5 {[%emt 0:15:20]} Nd4 {[%emt 0:02:20]} 9. Bd3 {[%emt 0:04:17]} Be7 {[%emt 0:08:38]} 10. Be3 {[%emt 0:01:46]} Nxf3+ {[%emt 0:09:50]} 11. gxf3 {[%emt 0:00:07]} Bh5 {[%emt 0:01:26]} 12. Nd2 {[%emt 0:13:40]} O-O {[%emt 0:02:25]} 13. Rc1 {[%emt 0:01:04]} Nd7 {[%emt 0:14:05]} 14. Rg1 {[%emt 0:05:33]} Qa5 {[%emt 0:01:42]} 15. Ke2 {[%emt 0:18:14]} Nc5 {[%emt 0:12:10]} 16. Nc4 {[%emt 0:05:24]} Qc7 {[%emt 0:01:54]} 17. Bb1 {[%emt 0:09:19]} Qd7 {[%emt 0:11:25]} 18. Bxc5 {[%emt 0:02:17]} dxc5 {[%emt 0:00:05]} 19. Nxe5 {[%emt 0:00:05]} Qb5+ {[%emt 0:00:34]} 20. Nc4 {[%emt 0:00:44]} Rad8 {[%emt 0:01:07]} 21. Qd3 {[%emt 0:03:03]} Rfe8 {[%emt 0:01:27]} 22. Kf1 {[%emt 0:01:16]} Qd7 {[%emt 0:00:53]} 23. f4 {[%emt 0:01:22]} f5 {[%emt 0:02:33]} 24. d6 {[%emt 0:05:21]} Bxd6 {[%emt 0:00:48]} 25. e5 {[%emt 0:01:16]} Bf8 {[%emt 0:00:13]} 26. Qh3 {[%emt 0:02:26]} Bg6 {[%emt 0:00:44]} 27. Ne3 {[%emt 0:01:23]} Qb5+ {[%emt 0:00:21]} 28. Kg2 {[%emt 0:00:20]} Rd2 {[%emt 0:00:35]} 29. Bxf5 {[%emt 0:01:14]} Bxf5 {[%emt 0:00:25]} 30. Qxf5 {[%emt 0:00:41]} Qe2 {[%emt 0:00:45]} 31. Ng4 {[%emt 0:00:22]} Rd3 {[%emt 0:00:34]} 32. Nf6+ {[%emt 0:00:36]} Kf7 {[%emt 0:00:29]} 33. Nxh7+ {[%emt 0:00:34]} Ke7 {[%emt 0:00:23]} 34. Ng5 {[%emt 0:00:35]} Rd2 {[%emt 0:00:37]} 35. Rgf1 {[%emt 0:00:31]} Kd8 {[%emt 0:00:35]} 36. Nf7+ {[%emt 0:00:28]} Kc7 {[%emt 0:00:19]} 37. b4 {[%emt 0:00:19]} b6 {[%emt 0:00:09]} 38. bxc5 {[%emt 0:00:07]} Bxc5 {[%emt 0:00:10]} 39. Nd6 {[%emt 0:00:08]} Rd8 {[%emt 0:00:58]} 40. Qe4 {[%emt 0:00:00]} Qxe4+ {[%emt 0:00:00]} 41. Nxe4 {[%emt 0:01:15]} R2d5 {[%emt 0:02:26]} 42. Rc3 {[%emt 0:04:20]} Kc6 {[%emt 0:01:35]} 43. Rfc1 {[%emt 0:01:11]} a5 {[%emt 0:06:33]} 44. Rg3 {[%emt 0:02:53]} Rd4 {[%emt 0:06:25]} 45. Rg6+ {[%emt 0:03:17]} Kb5 {[%emt 0:00:23]} 46. Nxc5 {[%emt 0:10:43]} bxc5 {[%emt 0:00:02]} 47. Kg3 {[%emt 0:01:49]} Rf8 {[%emt 0:03:22]} 48. Rg4 {[%emt 0:01:37]} c4 {[%emt 0:01:26]} 49. e6 {[%emt 0:02:19]} Rd3+ {[%emt 0:01:21]} 50. f3 {[%emt 0:01:03]} Re3 {[%emt 0:03:34]} 51. Rg5+ {[%emt 0:00:02]} Kb4 {[%emt 0:00:21]} 52. f5 {[%emt 0:01:26]} c3 {[%emt 0:01:33]} 53. Kf2 {[%emt 0:01:03]} Re5 {[%emt 0:05:49]} 54. Rg4+ {[%emt 0:00:08]} Kb5 {[%emt 0:00:26]} 55. Rxc3 {[%emt 0:01:14]} Rfxf5 {[%emt 0:00:07]} 56. a4+ {[%emt 0:00:24]} Kb6 {[%emt 0:00:24]} 57. Re3 {[%emt 0:00:52]} Kc6 {[%emt 0:00:52]} 58. Rxe5 {[%emt 0:00:26]} Rxe5 {[%emt 0:00:02]} 59. Re4 {[%emt 0:00:05]} Rxe4 {[%emt 0:00:57]} 60. fxe4 {[%emt 0:00:02]} Kd6 {[%emt 0:00:05]} 61. Ke3 {[%emt 0:00:06]} 1-0

[Event "FIDE WYCC Girls U18 2023"]
[Site "Montesilvano"]
[Date "2023.11.20"]
[Round "7.12"]
[White "Skarbarchuk, Tetyana"]
[Black "Striskova, Lucia"]
[Result "1-0"]
[ECO "D32"]
[WhiteElo "2010"]
[BlackElo "2039"]
[Annotator "NA RC"]
[PlyCount "51"]
[EventDate "2023.11.13"]
[EventType "swiss"]
[EventCountry "ITA"]
[SourceTitle "playchess.com"]
[Source "ChessBase"]
[SourceQuality "1"]
[TimeControl "40/5400+30:1800+30"]

1. d4 {[%emt 0:00:04]} d5 {[%emt 0:00:29]} 2. c4 {[%emt 0:00:07]} e6 {[%emt 0:00:08]} 3. Nc3 {[%emt 0:00:14]} c5 {[%emt 0:00:26]} 4. cxd5 {[%emt 0:00:31]} exd5 {[%emt 0:00:11]} 5. Nf3 {[%emt 0:03:58]} Nc6 {[%emt 0:00:09]} 6. e3 {[%emt 0:14:46]} c4 {[%emt 0:01:00]} 7. Be2 {[%emt 0:03:13]} Bb4 {[%emt 0:00:29]} 8. O-O {[%emt 0:01:16]} Nf6 {[%emt 0:00:26]} 9. Ne5 {[%emt 0:05:07]} O-O {[%emt 0:01:07]} 10. Nxc6 {[%emt 0:09:36]} bxc6 {[%emt 0:00:11]} 11. Qc2 {[%emt 0:04:21]} Qc7 {[%emt 0:04:47]} 12. b3 {[%emt 0:07:53]} cxb3 {[%emt 0:02:41]} 13. axb3 {[%emt 0:00:14]} Bd6 {[%emt 0:00:16]} 14. h3 {[%emt 0:02:59]} Re8 {[%emt 0:01:19]} 15. Ba3 {[%emt 0:02:50]} Bh2+ {[%emt 0:08:27]} 16. Kh1 {[%emt 0:00:07]} Ne4 {[%emt 0:01:49]} 17. Nxe4 {[%emt 0:08:20]} Rxe4 {[%emt 0:00:13]} 18. Rfc1 {[%emt 0:04:33]} Bd7 {[%emt 0:01:41]} 19. Bf3 {[%emt 0:09:43]} Rh4 {[%emt 0:04:50]} 20. Bxd5 {[%emt 0:00:06]} Qc8 {[%emt 0:18:24]} 21. Bxc6 {[%emt 0:02:40]} Bxh3 {[%emt 0:00:32]} 22. Bxa8 {[%emt 0:00:48]} Qxa8 {[%emt 0:00:13]} 23. Qc6 {[%emt 0:00:14]} Qd8 {[%emt 0:02:14]} 24. gxh3 {[%emt 0:00:32]} Rxh3 {[%emt 0:00:07]} 25. Qc8 {[%emt 0:00:14]} Bc7+ {[%emt 0:00:08]} 26. Qxh3 {[%emt 0:00:04]} 1-0

[Event "FIDE WYCC Girls U18 2023"]
[Site "Montesilvano"]
[Date "2023.11.20"]
[Round "7.13"]
[White "Obada, Ema"]
[Black "Sasvatha A"]
[Result "1-0"]
[ECO "B13"]
[WhiteElo "2023"]
[BlackElo "1568"]
[Annotator "NA RC"]
[PlyCount "121"]
[EventDate "2023.11.13"]
[EventType "swiss"]
[EventCountry "ITA"]
[SourceTitle "playchess.com"]
[Source "ChessBase"]
[SourceQuality "1"]
[TimeControl "40/5400+30:1800+30"]

1. e4 {[%emt 0:00:03]} c6 {[%emt 0:00:05]} 2. d4 {[%emt 0:00:04]} d5 {[%emt 0:00:04]} 3. exd5 {[%emt 0:00:04]} cxd5 {[%emt 0:00:06]} 4. Bd3 {[%emt 0:00:05]} Nc6 {[%emt 0:00:07]} 5. c3 {[%emt 0:00:06]} Nf6 {[%emt 0:00:07]} 6. Bf4 {[%emt 0:00:06]} g6 {[%emt 0:00:09]} 7. Nf3 {[%emt 0:00:19]} Bf5 {[%emt 0:02:28]} 8. Bxf5 {[%emt 0:00:11]} gxf5 {[%emt 0:00:07]} 9. Nbd2 {[%emt 0:00:19]} Rg8 {[%emt 0:01:30]} 10. O-O {[%emt 0:08:19]} e6 {[%emt 0:00:14]} 11. Qb3 {[%emt 0:10:54]} Qd7 {[%emt 0:01:36]} 12. Ne5 {[%emt 0:26:59]} Nxe5 {[%emt 0:00:09]} 13. Bxe5 {[%emt 0:10:42]} Ne4 {[%emt 0:01:09]} 14. Nxe4 {[%emt 0:01:45]} fxe4 {[%emt 0:00:08]} 15. c4 {[%emt 0:09:42]} dxc4 {[%emt 0:08:37]} 16. Qxc4 {[%emt 0:01:29]} Bg7 {[%emt 0:01:50]} 17. Rad1 {[%emt 0:17:47]} Rd8 {[%emt 0:07:38]} 18. Bg3 {[%emt 0:01:34]} Qd5 {[%emt 0:06:19]} 19. Qa4+ {[%emt 0:01:51]} b5 {[%emt 0:01:55]} 20. Qxa7 {[%emt 0:00:29]} Bxd4 {[%emt 0:00:37]} 21. Qc7 {[%emt 0:03:54]} Qd7 {[%emt 0:55:02]} 22. Qc2 {[%emt 0:00:49]} Qb7 {[%emt 0:00:55]} 23. Kh1 {[%emt 0:02:12]} f5 {[%emt 0:00:50]} 24. f3 {[%emt 0:00:43]} e3 {[%emt 0:00:16]} 25. Qd3 {[%emt 0:00:42]} Rd5 {[%emt 0:03:44]} 26. Bf4 {[%emt 0:00:37]} Qa7 {[%emt 0:04:42]} 27. Qe2 {[%emt 0:00:55]} Kf7 {[%emt 0:00:37]} 28. Rc1 {[%emt 0:00:33]} e5 {[%emt 0:00:37]} 29. Bg3 {[%emt 0:00:03]} f4 {[%emt 0:00:21]} 30. Bh4 {[%emt 0:00:36]} Rg6 {[%emt 0:01:51]} 31. Qd3 {[%emt 0:00:20]} Qd7 {[%emt 0:00:14]} 32. Qb3 {[%emt 0:00:40]} Rh6 {[%emt 0:00:25]} 33. g3 {[%emt 0:00:43]} Kg7 {[%emt 0:00:35]} 34. Bg5 {[%emt 0:00:35]} Rg6 {[%emt 0:00:28]} 35. gxf4 {[%emt 0:00:13]} exf4 {[%emt 0:00:37]} 36. Bxf4 {[%emt 0:00:36]} e2 {[%emt 0:01:14]} 37. Rfe1 {[%emt 0:00:05]} Bb6 {[%emt 0:00:19]} 38. Rxe2 {[%emt 0:00:22]} Rd3 {[%emt 0:00:24]} 39. Be5+ {[%emt 0:00:41]} Kh6 {[%emt 0:00:25]} 40. Bf4+ {[%emt 0:00:00]} Kg7 {[%emt 0:00:00]} 41. Re7+ {[%emt 0:04:22]} Qxe7 {[%emt 0:00:37]} 42. Qxd3 {[%emt 0:00:04]} Re6 {[%emt 0:01:25]} 43. Bg3 {[%emt 0:01:41]} b4 {[%emt 0:01:45]} 44. Rc4 {[%emt 0:04:09]} Rg6 {[%emt 0:02:48]} 45. Re4 {[%emt 0:01:35]} Qc7 {[%emt 0:02:41]} 46. Rxb4 {[%emt 0:07:19]} Qc5 {[%emt 0:02:28]} 47. Qd7+ {[%emt 0:05:55]} Kg8 {[%emt 0:00:30]} 48. Qe8+ {[%emt 0:00:08]} Kg7 {[%emt 0:00:58]} 49. Qe5+ {[%emt 0:02:06]} Qxe5 {[%emt 0:01:23]} 50. Bxe5+ {[%emt 0:00:02]} Kf7 {[%emt 0:00:06]} 51. Bg3 {[%emt 0:02:07]} Rc6 {[%emt 0:00:22]} 52. Kg2 {[%emt 0:00:31]} Rc2+ {[%emt 0:00:15]} 53. Kh3 {[%emt 0:00:04]} Bd8 {[%emt 0:00:07]} 54. Be5 {[%emt 0:01:10]} Ke6 {[%emt 0:00:11]} 55. f4 {[%emt 0:00:46]} Kf5 {[%emt 0:00:12]} 56. Rb8 {[%emt 0:01:23]} Be7 {[%emt 0:00:14]} 57. Rb7 {[%emt 0:01:20]} Ke6 {[%emt 0:00:24]} 58. a4 {[%emt 0:00:27]} h5 {[%emt 0:00:23]} 59. a5 {[%emt 0:00:31]} Bc5 {[%emt 0:01:36]} 60. Rc7 {[%emt 0:00:19]} Kd5 {[%emt 0:00:06]} 61. b4 {[%emt 0:00:14]} 1-0

[Event "FIDE WYCC Girls U18 2023"]
[Site "Montesilvano"]
[Date "2023.11.20"]
[Round "7.14"]
[White "Largo, Franchesca"]
[Black "Margadgua Erdenebayar"]
[Result "0-1"]
[ECO "B51"]
[WhiteElo "1658"]
[BlackElo "2013"]
[Annotator "NA RC"]
[PlyCount "96"]
[EventDate "2023.11.13"]
[EventType "swiss"]
[EventCountry "ITA"]
[SourceTitle "playchess.com"]
[Source "ChessBase"]
[SourceQuality "1"]
[TimeControl "40/5400+30:1800+30"]

1. e4 {[%emt 0:00:42]} c5 {[%emt 0:00:22]} 2. Nf3 {[%emt 0:00:14]} d6 {[%emt 0:00:15]} 3. Bb5+ {[%emt 0:00:19]} Nd7 {[%emt 0:01:14]} 4. c3 {[%emt 0:01:04]} Ngf6 {[%emt 0:01:23]} 5. Qe2 {[%emt 0:01:10]} e6 {[%emt 0:02:23]} 6. d4 {[%emt 0:05:14]} Be7 {[%emt 0:05:53]} 7. O-O {[%emt 0:09:06]} a6 {[%emt 0:08:13]} 8. Bd3 {[%emt 0:02:51]} cxd4 {[%emt 0:01:22]} 9. cxd4 {[%emt 0:00:08]} e5 {[%emt 0:00:02]} 10. Rd1 {[%emt 0:05:30]} O-O {[%emt 0:07:07]} 11. Nc3 {[%emt 0:03:56]} h6 {[%emt 0:05:36]} 12. h3 {[%emt 0:17:12]} Re8 {[%emt 0:03:40]} 13. Be3 {[%emt 0:02:39]} Bf8 {[%emt 0:04:26]} 14. Rac1 {[%emt 0:03:54]} b5 {[%emt 0:15:44]} 15. a3 {[%emt 0:26:26]} exd4 {[%emt 0:10:03]} 16. Bxd4 {[%emt 0:01:13]} Bb7 {[%emt 0:00:42]} 17. b4 {[%emt 0:07:06]} Qe7 {[%emt 0:08:29]} 18. Re1 {[%emt 0:04:56]} Qe6 {[%emt 0:05:06]} 19. Bb1 {[%emt 0:00:54]} Qe7 {[%emt 0:09:00]} 20. Nd2 {[%emt 0:00:41]} Rac8 {[%emt 0:02:35]} 21. f4 {[%emt 0:00:39]} g6 {[%emt 0:00:30]} 22. Ba2 {[%emt 0:00:57]} Kh7 {[%emt 0:00:19]} 23. e5 {[%emt 0:00:29]} Nh5 {[%emt 0:00:51]} 24. Qf2 {[%emt 0:00:39]} Ng7 {[%emt 0:02:07]} 25. Nde4 {[%emt 0:04:01]} dxe5 {[%emt 0:02:58]} 26. fxe5 {[%emt 0:00:06]} Bxe4 {[%emt 0:02:08]} 27. Nxe4 {[%emt 0:00:06]} Rxc1 {[%emt 0:00:02]} 28. Rxc1 {[%emt 0:00:07]} Nf5 {[%emt 0:01:01]} 29. Nd6 {[%emt 0:00:44]} Qg5 {[%emt 0:00:44]} 30. Be3 {[%emt 0:01:37]} Qe7 {[%emt 0:00:38]} 31. Nxf5 {[%emt 0:00:14]} gxf5 {[%emt 0:00:06]} 32. Qxf5+ {[%emt 0:00:04]} Kh8 {[%emt 0:00:33]} 33. Bd4 {[%emt 0:01:23]} Bg7 {[%emt 0:00:16]} 34. Bb1 {[%emt 0:00:24]} Nf8 {[%emt 0:00:04]} 35. Re1 {[%emt 0:00:39]} Qd7 {[%emt 0:01:07]} 36. Qe4 {[%emt 0:00:22]} Ng6 {[%emt 0:00:31]} 37. Ba2 {[%emt 0:00:34]} Bxe5 {[%emt 0:00:50]} 38. Bxe5+ {[%emt 0:00:16]} Rxe5 {[%emt 0:00:05]} 39. Qa8+ {[%emt 0:00:00]} Kg7 {[%emt 0:00:00]} 40. Rf1 {[%emt 0:00:00]} Rf5 {[%emt 0:00:00]} 41. Rxf5 {[%emt 0:07:47]} Qxf5 {[%emt 0:03:04]} 42. Bd5 {[%emt 0:00:47]} Qf6 {[%emt 0:01:07]} 43. Qc6 {[%emt 0:05:27]} Qa1+ {[%emt 0:03:34]} 44. Kh2 {[%emt 0:00:07]} Qe5+ {[%emt 0:00:05]} 45. Kg1 {[%emt 0:00:23]} Ne7 {[%emt 0:00:21]} 46. Qxa6 {[%emt 0:02:15]} Qxd5 {[%emt 0:00:33]} 47. Qa7 {[%emt 0:00:59]} Nc6 {[%emt 0:05:57]} 48. Qb6 {[%emt 0:04:48]} Qd4+ {[%emt 0:01:56]} 0-1

[Event "FIDE WYCC Girls U18 2023"]
[Site "Montesilvano"]
[Date "2023.11.20"]
[Round "7.15"]
[White "Dakic, Marta"]
[Black "Shohradova, Lala"]
[Result "*"]
[ECO "C02"]
[WhiteElo "2013"]
[BlackElo "1846"]
[Annotator "NA RC"]
[PlyCount "67"]
[EventDate "2023.11.13"]
[EventType "swiss"]
[EventCountry "ITA"]
[SourceTitle "playchess.com"]
[Source "ChessBase"]
[SourceQuality "1"]
[TimeControl "40/5400+30:1800+30"]

1. e4 {[%emt 0:00:06]} e6 {[%emt 0:00:13]} 2. d4 {[%emt 0:00:28]} d5 {[%emt 0:00:06]} 3. e5 {[%emt 0:00:21]} c5 {[%emt 0:00:04]} 4. c3 {[%emt 0:00:10]} Nc6 {[%emt 0:00:08]} 5. Nf3 {[%emt 0:00:15]} Bd7 {[%emt 0:00:26]} 6. Be2 {[%emt 0:00:35]} Nge7 {[%emt 0:02:07]} 7. O-O {[%emt 0:01:37]} Nf5 {[%emt 0:00:50]} 8. dxc5 {[%emt 0:00:51]} Bxc5 {[%emt 0:04:12]} 9. b4 {[%emt 0:00:49]} Be7 {[%emt 0:03:16]} 10. Re1 {[%emt 0:08:35]} O-O {[%emt 0:12:25]} 11. Bd3 {[%emt 0:10:58]} g6 {[%emt 0:02:26]} 12. Bxf5 {[%emt 0:17:04]} gxf5 {[%emt 0:01:37]} 13. Bh6 {[%emt 0:01:04]} Re8 {[%emt 0:07:09]} 14. b5 {[%emt 0:05:32]} Na5 {[%emt 0:04:07]} 15. Nd4 {[%emt 0:00:13]} Kh8 {[%emt 0:01:08]} 16. Qh5 {[%emt 0:00:35]} Rg8 {[%emt 0:00:40]} 17. Nd2 {[%emt 0:09:13]} Rg4 {[%emt 0:07:04]} 18. N2f3 {[%emt 0:11:19]} Qg8 {[%emt 0:03:21]} 19. g3 {[%emt 0:07:26]} Rc8 {[%emt 0:05:27]} 20. h3 {[%emt 0:02:01]} Rg6 {[%emt 0:05:02]} 21. Nh4 {[%emt 0:01:41]} Rxh6 {[%emt 0:18:10]} 22. Qxh6 {[%emt 0:00:20]} Rxc3 {[%emt 0:01:28]} 23. Nhf3 {[%emt 0:02:13]} Nc4 {[%emt 0:01:48]} 24. Qf4 {[%emt 0:07:03]} f6 {[%emt 0:08:02]} 25. h4 {[%emt 0:03:52]} fxe5 {[%emt 0:01:20]} 26. Nxe5 {[%emt 0:00:06]} Bd6 {[%emt 0:01:07]} 27. Ndf3 {[%emt 0:01:05]} Rxf3 {[%emt 0:02:42]} 28. Qxf3 {[%emt 0:01:10]} Nxe5 {[%emt 0:00:24]} 29. Qc3 {[%emt 0:00:13]} Qg7 {[%emt 0:00:17]} 30. a4 {[%emt 0:06:04]} d4 {[%emt 0:01:40]} 31. Qb3 {[%emt 0:00:30]} d3 {[%emt 0:00:38]} 32. Rxe5 {[%emt 0:02:04]} Qxe5 {[%emt 0:01:44]} 33. Rd1 {[%emt 0:00:08]} d2 {[%emt 0:00:16]} 34. Kg2 {[%emt 0:00:50]} *

[Event "FIDE WYCC Girls U18 2023"]
[Site "Montesilvano"]
[Date "2023.11.20"]
[Round "7.16"]
[White "Wan, Qian"]
[Black "Abrisqueta Zudaire, Leyre"]
[Result "1/2-1/2"]
[ECO "D02"]
[WhiteElo "1945"]
[BlackElo "2137"]
[Annotator "NA RC"]
[PlyCount "140"]
[EventDate "2023.11.13"]
[EventType "swiss"]
[EventCountry "ITA"]
[SourceTitle "playchess.com"]
[Source "ChessBase"]
[SourceQuality "1"]
[TimeControl "40/5400+30:1800+30"]

1. d4 {[%emt 0:00:03]} d5 {[%emt 0:00:07]} 2. Nf3 {[%emt 0:00:05]} c5 {[%emt 0:00:25]} 3. dxc5 {[%emt 0:06:06]} e6 {[%emt 0:00:41]} 4. Bg5 {[%emt 0:05:07]} Nf6 {[%emt 0:02:53]} 5. e3 {[%emt 0:02:53]} Bxc5 {[%emt 0:01:39]} 6. Be2 {[%emt 0:02:36]} O-O {[%emt 0:06:27]} 7. O-O {[%emt 0:00:19]} Nbd7 {[%emt 0:01:22]} 8. a3 {[%emt 0:01:21]} Qc7 {[%emt 0:01:30]} 9. Nbd2 {[%emt 0:02:22]} b6 {[%emt 0:07:14]} 10. c4 {[%emt 0:01:22]} Bb7 {[%emt 0:02:01]} 11. Rc1 {[%emt 0:01:11]} dxc4 {[%emt 0:02:55]} 12. Nxc4 {[%emt 0:01:47]} Bd5 {[%emt 0:13:28]} 13. b4 {[%emt 0:06:48]} Be7 {[%emt 0:01:30]} 14. Nce5 {[%emt 0:17:09]} Qd8 {[%emt 0:05:59]} 15. Nc6 {[%emt 0:06:19]} Bxc6 {[%emt 0:05:07]} 16. Rxc6 {[%emt 0:00:02]} Nd5 {[%emt 0:01:11]} 17. Bxe7 {[%emt 0:01:00]} Qxe7 {[%emt 0:00:20]} 18. e4 {[%emt 0:03:45]} N5f6 {[%emt 0:06:25]} 19. e5 {[%emt 0:03:41]} Nd5 {[%emt 0:00:45]} 20. Bc4 {[%emt 0:00:49]} Nf4 {[%emt 0:03:45]} 21. Rc7 {[%emt 0:03:51]} Rfd8 {[%emt 0:00:40]} 22. g3 {[%emt 0:06:14]} Ng6 {[%emt 0:01:44]} 23. Qe2 {[%emt 0:01:42]} Rdc8 {[%emt 0:03:23]} 24. Rb7 {[%emt 0:01:21]} Rcb8 {[%emt 0:01:40]} 25. Rxb8+ {[%emt 0:00:47]} Rxb8 {[%emt 0:03:07]} 26. Ba6 {[%emt 0:02:48]} Rd8 {[%emt 0:01:20]} 27. h4 {[%emt 0:01:29]} h6 {[%emt 0:00:46]} 28. Bd3 {[%emt 0:00:28]} Ngxe5 {[%emt 0:05:22]} 29. Nxe5 {[%emt 0:06:31]} Nxe5 {[%emt 0:00:06]} 30. Qxe5 {[%emt 0:00:04]} Rxd3 {[%emt 0:00:10]} 31. Rc1 {[%emt 0:00:39]} Qb7 {[%emt 0:02:48]} 32. a4 Rd5 {[%emt 0:04:46]} 33. Qc3 {[%emt 0:01:43]} Kh7 {[%emt 0:00:49]} 34. Kh2 {[%emt 0:03:33]} Rf5 {[%emt 0:00:33]} 35. Qe3 {[%emt 0:04:26]} Qd5 {[%emt 0:03:59]} 36. Rc7 {[%emt 0:00:50]} Qa2 {[%emt 0:01:45]} 37. Kg2 {[%emt 0:00:11]} Qd5+ {[%emt 0:03:27]} 38. Kh2 {[%emt 0:00:04]} a5 {[%emt 0:04:27]} 39. bxa5 {[%emt 0:02:41]} bxa5 {[%emt 0:00:02]} 40. Rc2 {[%emt 0:00:00]} Re5 {[%emt 0:00:00]} 41. Qc3 {[%emt 0:06:02]} Re4 {[%emt 0:04:00]} 42. Rd2 {[%emt 0:01:01]} Qf5 {[%emt 0:00:36]} 43. Qc2 {[%emt 0:01:52]} g6 {[%emt 0:03:07]} 44. Kg2 {[%emt 0:08:41]} Qe5 {[%emt 0:01:41]} 45. Rd7 {[%emt 0:02:09]} Kg7 {[%emt 0:00:18]} 46. Ra7 {[%emt 0:08:12]} Re1 {[%emt 0:01:00]} 47. Qd3 {[%emt 0:00:44]} Qc5 {[%emt 0:01:47]} 48. Qd7 Qf5 {[%emt 0:02:11]} 49. Qd4+ {[%emt 0:02:33]} Qe5 {[%emt 0:07:02]} 50. Qd3 {[%emt 0:00:38]} Rc1 {[%emt 0:05:16]} 51. Qf3 {[%emt 0:01:49]} Rc7 {[%emt 0:00:10]} 52. Ra6 {[%emt 0:00:25]} Qe1 {[%emt 0:00:33]} 53. Qe3 {[%emt 0:02:27]} Qxe3 {[%emt 0:01:43]} 54. fxe3 {[%emt 0:00:02]} Rc5 {[%emt 0:00:05]} 55. Ra7 {[%emt 0:00:19]} g5 {[%emt 0:02:03]} 56. hxg5 {[%emt 0:00:55]} hxg5 {[%emt 0:01:34]} 57. Kf3 {[%emt 0:00:05]} Kg6 {[%emt 0:01:45]} 58. g4 {[%emt 0:01:43]} f5 {[%emt 0:01:29]} 59. gxf5+ {[%emt 0:00:48]} exf5 {[%emt 0:01:44]} 60. Ra6+ {[%emt 0:00:31]} Kh5 {[%emt 0:00:34]} 61. Ra8 {[%emt 0:00:11]} Re5 {[%emt 0:01:47]} 62. Ra6 {[%emt 0:01:18]} Rc5 {[%emt 0:02:50]} 63. Ra8 {[%emt 0:00:03]} Rc3 {[%emt 0:00:43]} 64. Rxa5 {[%emt 0:00:12]} f4 {[%emt 0:00:51]} 65. Re5 {[%emt 0:00:14]} fxe3 {[%emt 0:00:21]} 66. Rxe3 {[%emt 0:00:53]} g4+ {[%emt 0:00:43]} 67. Kf2 {[%emt 0:00:05]} Rc4 {[%emt 0:00:19]} 68. Re8 {[%emt 0:01:14]} Rxa4 {[%emt 0:00:08]} 69. Rh8+ {[%emt 0:00:03]} Kg6 {[%emt 0:00:25]} 70. Kg3 {[%emt 0:00:05]} Kf6 {[%emt 0:00:18]} 1/2-1/2